[Event "1st Serbian League 2022"]
[Site "Vrnjacka Banja"]
[Date "2022.09.29"]
[Round "10.13"]
[White "Yilmazyerli, Mert"]
[Black "Ioannidis, Evgenios"]
[Result "0-1"]
[ECO "D73"]
[WhiteElo "2533"]
[BlackElo "2486"]
[Annotator "TA"]
[PlyCount "66"]
[EventDate "2022.09.20"]
[EventType "team-tourn"]
[EventCountry "SRB"]
[SourceTitle "playchess.com"]
[Source "ChessBase"]
[SourceQuality "1"]
[TimeControl "40/5400+30:1800+30"]

{[%evp 10,66,23,8,12,16,9,14,3,8,0,0,13,19,18,4,38,33,49,29,41,31,17,37,16,0,6,0,40,-41,-22,-29,-30,-35,-32,-73,-68,-64,-71,-75,-79,-65,-73,-81,-75,-304,-299,-292,-283,-288,-272,-353,-336,-358,-364,-372,-371,-360,-305]} 1. Nf3 {[%emt 0:05:37]} d5 {[%emt 0:00:18]} 2. g3 {[%emt 0:00:04]} g6 {[%emt 0:00:20]} 3. Bg2 {[%emt 0:00:04]} Bg7 {[%emt 0:00:12]} 4. d4 {[%emt 0:00:04]} c6 {[%emt 0:00:18]} 5. O-O {[%emt 0:00:06]} Nf6 {[%emt 0:00:13]} 6. c4 {[%emt 0:00:07]} dxc4 {[%emt 0:01:03] D73: Fianchetto Grünfeld: 5 Nf3 .} 7. a4 {[%emt 0:00:07]} Ne4 {[%emt 0:04:12]} 8. Qc2 {[%emt 0:00:05]} Nd6 {[%emt 0:00:05] The position is equal.} 9. e4 {[%emt 0:00:04] Inhibits Bf5.} Na6 {[%emt 0:00:19]} 10. Na3 {[%emt 0:16:58]} Be6 {[%emt 0:00:40]} 11. Bd2 {[%emt 0:12:32][%mdl 1024] White has compensation.} O-O {[%emt 0:00:25]} 12. Bc3 {[%emt 0:00:14] [#]} Bh6 $146 {[%emt 0:11:20]} ({Predecessor:} 12... Nc7 13. Qe2 Qc8 14. Rfd1 Rd8 15. Ne5 f6 16. Nexc4 Nf7 17. Ne3 Bb3 18. Nac2 e5 {1-0 (42) Keymer,V (2491)-Arakhamia Grant,K (2345) Douglas 2018}) 13. Qe2 {[%emt 0:02:26]} Nc7 {[%emt 0:07:56]} 14. Ne5 {[%emt 0:05:19]} f5 {[%emt 0:02:58]} 15. d5 {[%emt 0:01:52]} cxd5 {[%emt 0:01:46]} 16. exd5 {[%emt 0:00:16]} Bxd5 {[%emt 0:00:57]} 17. Rad1 {[%emt 0:04:38]} e6 {[%emt 0:05:08]} 18. Naxc4 {[%emt 0:08:07]} Re8 {[%emt 0:06:05]} 19. Ne3 {[%emt 0:09:38]} (19. Rfe1 $14) 19... Bxg2 $1 $15 {[%emt 0:09:25]} 20. Kxg2 {[%emt 0:00:49][%cal Oe5g4] [#] Black must now prevent N5g4!} Bxe3 {[%emt 0:00:23]} 21. Qxe3 {[%emt 0:03:12][%cal Oe5g4]} Nd5 {[%emt 0:00:10]} 22. Rxd5 {[%emt 0:12:27]} exd5 {[%emt 0:00:07]} 23. Qd4 {[%emt 0:00:02] Inhibits Nc4.} Qf6 {[%emt 0:09:00] ...Ne4 is the strong threat.} 24. Qxd5+ {[%emt 0:00:11]} Qe6 {[%emt 0:00:07]} 25. Qd4 {[%emt 0:00:05] White threatens Nf3 and mate.} Ne4 $1 {[%emt 0:04:19]} 26. Ng4 {[%emt 0:00:53][%csl Gc3][%cal Rd4g7]} Nxc3 {[%emt 0:00:04]} 27. Nh6+ $2 {[%emt 0:02:12] White does not recover from this.} (27. Nf6+ $17 Kf7 28. Nxe8 Qe4+ 29. Qxe4 Nxe4 30. Nc7) 27... Kf8 $19 {[%emt 0:00:10][%cal Bg8f8,Bf8e7,Be7d6,Bd6d7,Bd7c7][%mdl 32]} 28. Qh8+ {[%emt 0:00:13]} Ke7 {[%emt 0:00:12]} 29. Qg7+ {[%emt 0:01:21]} Kd6 {[%emt 0:03:44] Hoping for ...Qd5+.} 30. Qxc3 {[%emt 0:06:06] And now Rd1+ would win.} Qd5+ {[%emt 0:01:46]} 31. Kg1 {[%emt 0:00:52]} Rac8 {[%emt 0:02:26] Black is winning.} 32. Nf7+ {[%emt 0:01:18] [#]} Kd7 $1 {[%emt 0:01:55]} ({Weaker is} 32... Qxf7 33. Rd1+ Ke6 34. Re1+ Kd7 35. Rd1+ Ke7 36. Qe5+ Qe6 37. Qg7+ Qf7 38. Qe5+ Qe6 39. Qg7+ Qf7 40. Qe5+ $11) 33. Qa3 {[%emt 0:07:20]} Kc7 {[%emt 0:00:39] Weighted Error Value: White=0.28 (precise) /Black=0.05 (flawless)} 0-1

[Event "1st Serbian League 2022"]
[Site "Vrnjacka Banja"]
[Date "2022.09.29"]
[Round "10.14"]
[White "Damljanovic, Branko"]
[Black "Gokerkan, Cem Kaan"]
[Result "1/2-1/2"]
[ECO "B91"]
[WhiteElo "2436"]
[BlackElo "2465"]
[Annotator "TA"]
[PlyCount "58"]
[EventDate "2022.09.20"]
[EventType "team-tourn"]
[EventCountry "SRB"]
[SourceTitle "playchess.com"]
[Source "ChessBase"]
[SourceQuality "1"]
[TimeControl "40/5400+30:1800+30"]

{[%evp 13,58,12,36,14,44,20,26,31,29,20,23,15,43,41,43,47,25,44,48,50,57,13,13,-5,0,-3,-13,-16,0,0,0,0,0,0,0,0,0,0,0,0,0,0,0,0,0,0,0]} 1. e4 {[%emt 0:00:43]} c5 {[%emt 0:01:15]} 2. Nf3 {[%emt 0:00:08]} d6 {[%emt 0:00:05]} 3. d4 {[%emt 0:00:50]} cxd4 {[%emt 0:00:04]} 4. Nxd4 {[%emt 0:00:06]} Nf6 {[%emt 0:00:04]} 5. Nc3 {[%emt 0:00:08]} a6 {[%emt 0:00:35]} 6. g3 {[%emt 0:04:42]} e5 {[%emt 0:01:21]} 7. Nb3 {[%emt 0:00:23]} Be6 {[%emt 0:05:36]} 8. Bg2 {[%emt 0:00:18] B91: Sicilian Najdorf: 6 g3.} b5 {[%emt 0:00:05]} 9. a4 {[%emt 0:01:34]} b4 $1 {[%emt 0:02:52]} 10. Nd5 {[%emt 0:00:38] White has an edge.} a5 {[%emt 0:00:44]} 11. O-O {[%emt 0:03:06] [#]} Be7 $146 {[%emt 0:01:53]} ({Predecessor:} 11... Nbd7 12. Qd3 Bxd5 13. exd5 Be7 14. Bd2 O-O 15. c3 bxc3 16. Qxc3 Nb6 17. Qc6 Rc8 {1-0 (40) Stankovic,M (2415)-Arandjelovic,A (2068) Kraljevo 2014}) 12. Bd2 {[%emt 0:01:01]} Nc6 {[%emt 0:24:44]} 13. c3 {[%emt 0:00:39]} Rb8 {[%emt 0:00:45]} 14. Rb1 {[%emt 0:04:53]} O-O {[%emt 0:01:34]} 15. Qe2 {[%emt 0:00:26]} bxc3 {[%emt 0:05:39]} 16. bxc3 {[%emt 0:03:43]} Qd7 {[%emt 0:06:16]} 17. Qa6 {[%emt 0:37:30][%cal Oa6c6] [#] Strongly threatening Qxc6!} Rfc8 {[%emt 0:01:21] The position is equal.} 18. Nxa5 {[%emt 0:08:45]} ({Not} 18. Nb6 $2 {[#]} Rxb6 $1 {[%mdl 512]} 19. Qxb6 Rb8 $19) 18... Ra8 {[%emt 0:02:05]} 19. Nxc6 $1 {[%emt 0:01:19]} Rxa6 {[%emt 0:04:38]} 20. Ncxe7+ {[%emt 0:01:03] Pair of Knights!} Kf8 {[%emt 0:04:45] White must now prevent ...Re8.} 21. Nxc8 {[%emt 0:00:31]} Qxc8 {[%emt 0:00:06]} 22. Rb4 $1 {[%emt 0:00:07]} Bxd5 {[%emt 0:13:57]} 23. exd5 {[%emt 0:00:28]} Ra8 {[%emt 0:02:15]} 24. Rfb1 {[%emt 0:03:04]} Qf5 {[%emt 0:02:13][%cal Oa8a4]} 25. Rb8+ {[%emt 0:07:44]} Rxb8 {[%emt 0:00:01]} 26. Rxb8+ {[%emt 0:00:08]} Ke7 {[%emt 0:00:09] Hoping for ...Ng4.} 27. Rb7+ {[%emt 0:00:51]} Kf8 {[%emt 0:02:25]} 28. Rb8+ {[%emt 0:09:33]} Ke7 {[%emt 0:00:02]} 29. Rb7+ {[%emt 0:02:03]} Kf8 {[%emt 0:05:02] Weighted Error Value: White=0.06 (flawless) /Black=0.04 (flawless)} 1/2-1/2

[Event "1st Serbian League 2022"]
[Site "Vrnjacka Banja"]
[Date "2022.09.29"]
[Round "10.15"]
[White "Arsovic, Goran"]
[Black "Tadic, Branko"]
[Result "1/2-1/2"]
[ECO "A39"]
[WhiteElo "2362"]
[BlackElo "2455"]
[Annotator "TA"]
[PlyCount "21"]
[EventDate "2022.09.20"]
[EventType "team-tourn"]
[EventCountry "SRB"]
[SourceTitle "playchess.com"]
[Source "ChessBase"]
[SourceQuality "1"]
[TimeControl "40/5400+30:1800+30"]

{[%evp 16,21,32,37,31,40,35,-46]} 1. d4 {[%emt 0:00:36]} Nf6 {[%emt 0:00:04]} 2. Nf3 {[%emt 0:00:14]} g6 {[%emt 0:00:06]} 3. c4 {[%emt 0:00:20]} Bg7 {[%emt 0:00:03]} 4. g3 {[%emt 0:00:20]} O-O {[%emt 0:00:05]} 5. Bg2 {[%emt 0:00:16]} c5 {[%emt 0:00:08]} 6. Nc3 {[%emt 0:01:15]} cxd4 {[%emt 0:00:13]} 7. Nxd4 {[%emt 0:00:12]} Nc6 {[%emt 0:00:05]} 8. O-O {[%emt 0:00:55]} Qa5 {[%emt 0:00:11]} 9. e3 $1 {[%emt 0:01:12][%mdl 4] White is slightly better. now scores much better than the old 9.Nb3.} d6 {[%emt 0:00:08] A39: Symmetrical English vs ...g6: 4 Bg2 Bg7 5 Nf3 Nf6 6 0-0 0-0 7 d4.} 10. Bd2 {[%emt 0:00:30]} Bd7 {[%emt 0:00:13] [#]} 11. Bc1 $146 {[%emt 1:30:10] Weighted Error Value: White=0.00 (flawless) /Black=0.00 (flawless)} ({White should try} 11. Rc1 $14) ({Predecessor:} 11. b3 Rfc8 12. Rc1 Qd8 13. h3 h5 14. Qe2 Rab8 15. Rfd1 a6 16. Nxc6 Bxc6 17. e4 {0-1 (87) Oparin,G (2681)-Duda,J (2760) Warsaw 2021}) 1/2-1/2

[Event "1st Serbian League 2022"]
[Site "Vrnjacka Banja"]
[Date "2022.09.29"]
[Round "10.16"]
[White "Nikolovski, Nikola"]
[Black "Ristic, Nenad"]
[Result "1-0"]
[ECO "B13"]
[WhiteElo "2359"]
[BlackElo "2267"]
[Annotator "TA"]
[PlyCount "133"]
[EventDate "2022.09.20"]
[EventType "team-tourn"]
[EventCountry "SRB"]
[SourceTitle "playchess.com"]
[Source "ChessBase"]
[SourceQuality "1"]
[TimeControl "40/5400+30:1800+30"]

{[%evp 12,133,16,21,20,2,2,6,4,11,14,6,27,27,27,23,36,46,49,14,15,14,9,0,0,0,12,1,7,5,24,4,12,15,19,16,9,10,26,20,38,0,0,0,0,0,0,0,33,5,4,0,0,0,0,0,0,0,21,-46,-37,-67,-69,-79,-13,-39,-4,-60,-23,-45,-45,-68,-48,-171,-18,-10,0,0,0,0,0,0,0,0,0,0,0,0,0,0,0,0,0,-8,0,-4,0,0,0,0,0,0,0,0,0,0,0,0,0,0,0,0,16,26,79,73,104,49,1385,106,29997,29998,29998,29999]} 1. e4 {[%emt 0:00:06]} c6 {[%emt 0:00:21]} 2. d4 {[%emt 0:00:10]} d5 {[%emt 0:00:07]} 3. exd5 {[%emt 0:00:08]} cxd5 {[%emt 0:00:08]} 4. Bd3 {[%emt 0:00:08]} Nc6 {[%emt 0:00:10]} 5. c3 {[%emt 0:00:07]} Nf6 {[%emt 0:00:07]} 6. Bf4 {[%emt 0:01:05]} Bg4 {[%emt 0:00:41]} 7. Qb3 {[%emt 0:00:23]} e5 {[%emt 0:00:20] B13: Caro-Kann: Exchange Variation and Panov-Botvinnik Attack.} 8. dxe5 {[%emt 0:06:57] 8.h3 gains popularity.} Nh5 {[%emt 0:00:45]} 9. Be3 {[%emt 0:00:08] aiming for Nf3.} Nxe5 {[%emt 0:01:38] The position is equal.} 10. Bb5+ {[%emt 0:00:16]} Nc6 {[%emt 0:02:09]} 11. Be2 {[%emt 0:00:41]} Bxe2 {[%emt 0:06:59]} 12. Nxe2 {[%emt 0:00:11]} Qd7 {[%emt 0:01:20]} 13. Nd2 {[%emt 0:00:14]} Nf6 {[%emt 0:01:25]} 14. Nf3 {[%emt 0:08:52]} Bd6 {[%emt 0:04:34]} 15. O-O {[%emt 0:03:59]} O-O {[%emt 0:00:50] [#]} 16. Bg5 $146 {[%emt 0:10:37]} ({Predecessor:} 16. Rad1 Rfe8 17. Ng3 h6 18. Rd3 Ne5 19. Nxe5 Bxe5 20. f4 Bc7 21. Bd4 Bb6 22. Bxb6 axb6 {1-0 (40) Shahinyan,D (2445)-Chkhaidze,N (2330) Poti 2019}) 16... Rfe8 {[%emt 0:10:38]} 17. Ned4 {[%emt 0:08:46]} Ne4 {[%emt 0:02:23]} 18. Rad1 {[%emt 0:01:04]} h6 {[%emt 0:08:12]} 19. Be3 {[%emt 0:03:47]} Rad8 {[%emt 0:03:40]} 20. Rfe1 {[%emt 0:11:31]} Bb8 {[%emt 0:06:08]} 21. Qc2 {[%emt 0:07:51]} Na5 {[%emt 0:02:32]} 22. Nd2 {[%emt 0:03:22]} Qd6 {[%emt 0:04:45]} 23. Nf1 {[%emt 0:00:28]} Nc4 {[%emt 0:01:32]} 24. Bc1 {[%emt 0:02:18]} Qa6 {[%emt 0:03:39]} 25. a3 {[%emt 0:04:08]} Qb6 {[%emt 0:03:59]} 26. Nf5 {[%emt 0:01:36]} a6 {[%emt 0:08:00]} 27. N5e3 {[%emt 0:04:10]} Nxe3 {[%emt 0:01:46]} 28. Bxe3 {[%emt 0:01:19]} Qc6 {[%emt 0:02:52]} 29. Bd4 {[%emt 0:00:27]} b5 {[%emt 0:00:38]} 30. Re3 {[%emt 0:00:35]} Re6 {[%emt 0:01:25]} 31. Rde1 {[%emt 0:01:02]} Rde8 {[%emt 0:01:57]} 32. Qd1 {[%emt 0:01:59]} Bc7 {[%emt 0:05:02]} 33. Qg4 {[%emt 0:02:52][%csl Gd4][%cal Rg4g7]} Rg6 {[%emt 0:01:24]} 34. Qh5 {[%emt 0:00:29]} Ree6 {[%emt 0:01:47]} 35. Qh3 {[%emt 0:07:43]} (35. R3e2 $11) 35... Bb6 $1 $15 {[%emt 0:05:24]} 36. Bxb6 {[%emt 0:05:50]} Qxb6 {[%emt 0:00:04]} 37. R1e2 {[%emt 0:00:46]} a5 {[%emt 0:03:21]} (37... Rgf6 $1 $17) 38. g3 {[%emt 0:02:08]} Qc6 {[%emt 0:01:14][%cal Ob5b4]} 39. Qg2 {[%emt 0:00:35]} (39. f3 $11 Ng5 40. Qg2) 39... Qc5 {[%emt 0:00:40]} (39... f5 $5 {[%cal Rf5f4]} 40. f3 f4 $17) 40. Kh1 {[%emt 0:00:56]} b4 {[%emt 0:01:09]} 41. axb4 {[%emt 0:09:52]} axb4 {[%emt 0:00:03]} 42. f3 {[%emt 0:01:08] [#]} (42. cxb4 $15 Qxb4 43. f3) 42... Nd6 $2 {[%emt 0:01:05]} (42... bxc3 43. fxe4 d4 44. Rf3 $18) (42... Nxc3 $1 $19 {[%mdl 512]} 43. Rxe6 Rxe6 44. Rxe6 fxe6) 43. Qf2 $11 {[%emt 0:04:54]} Qb5 {[%emt 0:08:59]} 44. Kg2 {[%emt 0:03:52]} Rgf6 {[%emt 0:03:51]} 45. Qe1 {[%emt 0:02:53][%csl LRb4,LRe6][%cal Re3e6]} bxc3 {[%emt 0:03:24]} 46. bxc3 {[%emt 0:00:58][%cal Re3e6]} Qe8 {[%emt 0:01:32]} 47. Qd1 {[%emt 0:01:57]} Nc4 {[%emt 0:03:11][%cal Bd6c4,Bc4b2,Bb2d3,Bd3e1][%mdl 32]} 48. Rxe6 {[%emt 0:00:23]} Rxe6 {[%emt 0:00:08]} (48... fxe6 49. Qxd5 exd5 50. Rxe8+ Kf7 51. Rd8 $16) 49. Kf2 {[%emt 0:00:46]} Qb5 {[%emt 0:01:09]} 50. Ne3 {[%emt 0:02:50]} Nb2 {[%emt 0:10:52]} 51. Qc2 {[%emt 0:00:58]} Nd3+ {[%emt 0:00:13]} 52. Kg2 {[%emt 0:00:57]} Qa6 {[%emt 0:01:20]} 53. Qd2 {[%emt 0:00:50]} Rb6 {[%emt 0:01:23]} 54. Qa2 {[%emt 0:01:36] Inhibits Rb2.} Ne1+ {[%emt 0:01:44]} 55. Kf2 {[%emt 0:00:15]} Nd3+ {[%emt 0:00:11]} 56. Kg2 {[%emt 0:00:50]} Ne1+ {[%emt 0:02:08]} 57. Kf2 {[%emt 0:00:06]} Nd3+ {[%emt 0:00:13]} 58. Kg2 {[%emt 0:01:55]} Qb5 {[%emt 0:01:13] ...Nc1 is the strong threat.} 59. Nxd5 {[%emt 0:00:51]} Ra6 {[%emt 0:00:19]} 60. Ne7+ {[%emt 0:01:07]} Kf8 {[%emt 0:00:27]} 61. Qd2 {[%emt 0:01:17] Prevents Ne1+.} Rd6 {[%emt 0:00:18][%cal Od3f4] Hoping for ...Nf4+!} 62. Qc2 {[%emt 0:00:54]} Rd7 {[%emt 0:00:51]} (62... Rd8 $11 {keeps the balance.}) 63. c4 $16 {[%emt 0:00:27]} Qb4 {[%emt 0:00:14] [#] Threatens to win with ...Ne1+.} 64. Kh3 $40 {[%emt 0:00:31][%mdl 128] White is up to no good.} (64. Qa2 $1 $16 {Intending Qa8+ and mate.} Ne5 65. Nd5) 64... Nc1 $2 {[%emt 0:01:07][%mdl 8192]} (64... Qa3 $14 65. Nd5 Rxd5 66. cxd5 Nf4+ 67. Kg4 (67. gxf4 {gets mated.} Qxf3+ 68. Kh4 Qxf4+ 69. Kh3 Qf3+ 70. Kh4 g5#) 67... Nxe2 68. Qxe2 Qc5) 65. Nd5 $2 {[%emt 0:00:32]} (65. Nc6 $18 {is the precise move to win. White wants to mate with Qh7.} Nxe2 66. Nxb4) 65... Qc5 $2 {[%emt 0:00:27][%mdl 8192] [#]} (65... Rxd5 $16 66. cxd5 (66. Qxc1 Rh5+ 67. Kg2 Rc5 $16) 66... Nxe2) 66. Qh7 $1 {[%emt 0:00:24][%cal Rh7h8]} f6 {[%emt 0:00:29]} 67. Qh8+ {[%emt 0:00:11] Weighted Error Value: White=0.12 (very precise) /Black=0.10 (very precise)} 1-0

[Event "1st Serbian League 2022"]
[Site "Vrnjacka Banja"]
[Date "2022.09.29"]
[Round "10.17"]
[White "Rajkovic, Mladen"]
[Black "Zlatanovic, Boroljub"]
[Result "1-0"]
[ECO "C04"]
[WhiteElo "2335"]
[BlackElo "2313"]
[Annotator "TA"]
[PlyCount "147"]
[EventDate "2022.09.20"]
[EventType "team-tourn"]
[EventCountry "SRB"]
[SourceTitle "playchess.com"]
[Source "ChessBase"]
[SourceQuality "1"]
[TimeControl "40/5400+30:1800+30"]

{[%evp 16,147,38,31,39,42,38,18,31,34,28,9,23,23,20,22,10,0,14,0,0,0,32,33,314,294,532,439,588,603,572,406,354,415,392,369,354,327,885,816,762,812,803,786,760,370,366,384,371,44,46,0,0,-91,-93,-87,-94,-99,-97,-81,-64,-164,0,0,0,0,0,0,0,0,0,-15,-8,-15,-9,-10,-10,-10,0,0,0,0,0,0,18,18,18,18,18,18,32,32,35,41,40,45,62,62,62,62,62,62,62,62,62,62,69,69,70,69,79,78,508,500,492,492,460,447,2488,1975,29982,29983,29990,29979,29988,29985,29992,29993,29993,29994,29994,29979,29977,12030]} 1. e4 {[%emt 0:02:54]} e6 {[%emt 0:00:23]} 2. d4 {[%emt 0:00:12]} d5 {[%emt 0:00:06]} 3. Nd2 {[%emt 0:00:06]} Nc6 {[%emt 0:00:53]} 4. Ngf3 {[%emt 0:00:07]} Nf6 {[%emt 0:00:07]} 5. e5 {[%emt 0:00:06]} Nd7 {[%emt 0:00:06]} 6. Bd3 {[%emt 0:01:12]} Nb4 {[%emt 0:00:23]} 7. Be2 {[%emt 0:00:08]} c5 {[%emt 0:00:07]} 8. c3 {[%emt 0:00:03]} Nc6 {[%emt 0:00:05]} 9. O-O {[%emt 0:00:05]} a5 {[%emt 0:00:58] C04: French Tarrasch: 3...Nc6.} 10. a4 {[%emt 0:05:44]} Be7 {[%emt 0:00:25]} 11. Bd3 {[%emt 0:04:08]} cxd4 {[%emt 0:00:34] The position is equal. 11...b6 gains popularity.} 12. cxd4 {[%emt 0:00:40]} Nb4 {[%emt 0:00:21]} 13. Bb1 {[%emt 0:01:39]} b6 {[%emt 0:02:38]} 14. Re1 {[%emt 0:02:34]} Ba6 {[%emt 0:04:54]} 15. Nf1 {[%emt 0:01:47][%cal Bd2f1,Bf1e3,Be3c4][%mdl 32]} Rc8 {[%emt 0:01:07] [#]} 16. Ne3 $146 {[%emt 0:05:39]} ({Predecessor:} 16. Ra3 b5 17. h4 h6 18. Ng3 bxa4 19. Nh2 Qb6 20. Rf3 h5 21. Be3 g6 22. Rf4 Rf8 23. Rxf7 Rxf7 24. Bxg6 {1-0 (44) Guseinov,G (2645)-Swayams,M (2440) Porticcio 2017}) 16... b5 {[%emt 0:03:12]} 17. h4 {[%emt 0:12:37][%cal Of3g5]} bxa4 {[%emt 0:07:10]} (17... Bxh4 18. Nxh4 Qxh4 19. axb5 Bxb5 20. Rxa5 $14) 18. Ng5 {[%emt 0:09:33][%cal Oe3f5]} Bxg5 {[%emt 0:18:15]} 19. hxg5 {[%emt 0:00:08]} Qxg5 $2 {[%emt 0:00:57][%mdl 8192] [#]} (19... Bb5 $14) 20. Nc4 $1 $18 {[%emt 0:13:21]} Qh4 $2 {[%emt 0:04:43]} (20... Qxc1 21. Qxc1 Rxc4) 21. g3 {[%emt 0:06:38]} Qh3 {[%emt 0:04:05]} 22. Nd6+ {[%emt 0:00:05]} Ke7 {[%emt 0:00:35]} 23. Nxc8+ {[%emt 0:02:39]} Rxc8 {[%emt 0:02:34]} 24. Rxa4 {[%emt 0:01:31] The board is on fire.} (24. Qxa4 Nc6 $16) 24... Nc6 {[%emt 0:02:21]} 25. Bd3 {[%emt 0:04:24]} ({Less strong is} 25. Qf3 Bb5 $16) 25... Bxd3 {[%emt 0:07:39]} 26. Qxd3 {[%emt 0:00:01] Qa6 is the strong threat.} Nb6 $2 {[%emt 0:01:18]} (26... Qf5 27. Qa6 Rc7) 27. Qa6 {[%emt 0:06:12]} Rb8 {[%emt 0:02:16]} 28. Qb5 {[%emt 0:05:19]} Kd7 {[%emt 0:02:38]} 29. Rxa5 {[%emt 0:01:39] Intending Ra7+ and mate.} Nc8 {[%emt 0:00:41] Prevents Ra7+.} 30. Qa4 {[%emt 0:00:36]} (30. Qc5 $142 {aiming for Ra6.} Nxa5 31. Qxa5) 30... Rb4 {[%emt 0:02:31]} 31. Qa3 {[%emt 0:01:45] And now Bd2 would win.} Nxd4 {[%emt 0:02:54][%cal Oh3g4]} 32. Qd3 $2 {[%emt 0:06:08]} ({Not} 32. Ra7+ Nxa7 33. Qxa7+ Ke8 $11) (32. Bd2 $18 Rc4 33. Re3) 32... Qg4 $14 {[%emt 0:13:44] Strongly threatening ...Nf3+.} 33. Ra3 {[%emt 0:00:03]} (33. Kg2 $1 $14 Rb3 34. Qd1 Qxd1 35. Rxd1) 33... Rc4 $36 {[%emt 0:01:29][%mdl 2048] Black has the initiative.} 34. Qd1 {[%emt 0:05:04]} (34. Bd2 $11 {remains equal.}) 34... Nc2 {[%emt 0:03:23] Pair of Knights!} 35. Rb3 {[%emt 0:00:19]} Nxe1 {[%emt 0:02:56]} 36. Qxe1 {[%emt 0:00:01]} Qe4 {[%emt 0:01:24]} 37. Be3 {[%emt 0:01:43]} d4 {[%emt 0:01:22]} 38. Qd2 {[%emt 0:00:56]} ({White should play} 38. Qd1 $1 $15) 38... Qc2 $2 {[%emt 0:05:18]} ({Weaker is} 38... Qxe5 39. Rd3 Ne7 40. Bxd4 $11) (38... Kc6 $19 39. Bf4 Qc2) 39. Qxc2 {[%emt 0:01:10]} Rxc2 {[%emt 0:00:01]} 40. Bxd4 {[%emt 0:00:01][%mdl 4096] Endgame KRB-KRN} Rc4 {[%emt 0:01:41]} 41. Be3 {[%emt 0:08:07]} Ne7 {[%emt 0:01:50]} 42. Kf1 {[%emt 0:03:20]} Nd5 {[%emt 0:01:54]} 43. Rd3 {[%emt 0:03:28]} Kc6 {[%emt 0:01:41]} 44. Bd4 {[%emt 0:00:24]} Nb4 {[%emt 0:00:47]} 45. Rd1 {[%emt 0:00:20]} h5 {[%emt 0:00:56]} 46. Ke2 {[%emt 0:01:02]} g5 {[%emt 0:03:47]} 47. b3 {[%emt 0:04:11]} Rc2+ {[%emt 0:00:17]} 48. Kf3 {[%emt 0:00:03]} Nd5 {[%emt 0:04:09]} 49. Rh1 {[%emt 0:00:52]} Rd2 {[%emt 0:01:00]} 50. Ke4 {[%emt 0:00:27]} h4 {[%emt 0:03:57]} 51. gxh4 {[%emt 0:00:25]} gxh4 {[%emt 0:00:04]} 52. Rxh4 {[%emt 0:00:25]} Ne7 {[%emt 0:00:17][%cal Od2d4]} 53. Rh3 {[%emt 0:02:31]} Nf5 {[%emt 0:00:44]} 54. Rc3+ {[%emt 0:00:01]} Kb5 {[%emt 0:01:17]} 55. Bc5 {[%emt 0:13:27]} Rd8 {[%emt 0:00:52]} 56. b4 {[%emt 0:00:00]} Rh8 {[%emt 0:00:07]} 57. Kf4 {[%emt 0:00:00]} Rh5 {[%emt 0:01:09]} 58. Kg4 {[%emt 0:00:00]} Rh6 {[%emt 0:00:08]} 59. Rh3 {[%emt 0:00:00] Threatens to win with Rxh6.} Rg6+ {[%emt 0:01:19]} 60. Kf4 {[%emt 0:00:00]} Rg7 {[%emt 0:00:24] Prevents Rh7.} 61. Rh8 {[%emt 0:00:00]} Kc6 {[%emt 0:01:03]} 62. Rc8+ {[%emt 0:00:00]} Kb7 {[%emt 0:00:28]} 63. Rd8 {[%emt 0:00:00] Hoping for b5. White is more active.} Nh4 $2 {[%emt 0:01:35][%mdl 8192]} (63... Kc6 $16 {is more resistant.}) 64. b5 $18 {[%emt 0:00:00]} Ng2+ {[%emt 0:05:27] [#]} 65. Kf3 $1 {[%emt 0:00:00]} Nh4+ {[%emt 0:00:09]} 66. Ke4 {[%emt 0:00:00] Black must now prevent b6.} Ng6 {[%emt 0:02:52]} (66... Rg1 $142 67. Rd7+ Kc8 68. Rxf7 Re1+ 69. Be3 Nf5 70. Rf8+ Kd7) 67. Rd7+ {[%emt 0:00:00]} Kb8 {[%emt 0:00:30]} 68. Bd6+ {[%emt 0:00:00] White mates.} Ka8 {[%emt 0:00:07]} 69. Rc7 {[%emt 0:00:00]} Rh7 {[%emt 0:00:23]} 70. b6 {[%emt 0:00:00][%csl Gb6][%cal Rc7a7]} Rh4+ {[%emt 0:00:06]} 71. Ke3 {[%emt 0:00:15][%csl Gb6][%cal Rc7a7]} Ra4 {[%emt 0:00:23]} 72. b7+ {[%emt 0:00:13]} Ka7 {[%emt 0:00:10]} 73. b8=Q+ {[%emt 0:00:14]} Kxb8 {[%emt 0:00:04]} 74. Rc4+ $1 {[%emt 0:00:03] Weighted Error Value: White=0.39/Black=0.29 (precise)} 1-0